fUST/lending_fUST_20251208
["ID","MTS","AMOUNT","RATE_DAILY","PERIOD"]
[397500576,1765197045253,-500.0,5.845e-05,2]
[397500577,1765197045271,-500.0,5.845e-05,2]
[397500578,1765197045280,-500.0,5.845e-05,2]
[397500579,1765197045288,-500.0,5.845e-05,2]
[397500580,1765197045297,-500.0,5.845e-05,2]
[397500581,1765197045306,-500.0,5.845e-05,2]
[397500582,1765197045315,-500.0,5.845e-05,2]
[397500583,1765197045324,-500.0,5.845e-05,2]
[397500584,1765197045333,-500.0,5.845e-05,2]
[397500585,1765197045346,-500.0,5.845e-05,2]
[397500586,1765197045354,-500.0,5.845e-05,2]
[397500609,1765197045363,-500.0,5.845e-05,2]
[397500614,1765197045604,-500.0,5.845e-05,2]
[397500616,1765197045614,-500.0,5.845e-05,2]
[397500618,1765197045623,-500.0,5.845e-05,2]
[397500620,1765197045633,-500.0,5.845e-05,2]
[397500622,1765197045642,-500.0,5.845e-05,2]
[397500624,1765197045652,-500.0,5.845e-05,2]
[397500626,1765197045661,-500.0,5.845e-05,2]
[397500628,1765197045672,-500.0,5.845e-05,2]
[397500630,1765197045682,-370.92649759,5.845e-05,2]
[397500633,1765197045700,-129.07350241,5.845e-05,2]
[397500635,1765197045709,-500.0,5.845e-05,2]
[397500637,1765197045718,-291.30779506,5.845e-05,2]
[397500639,1765197045729,-208.69220494,5.845e-05,2]
[397500641,1765197045738,-500.0,5.845e-05,2]
[397500643,1765197045747,-300.0,5.851e-05,2]
[397500645,1765197045756,-300.0,5.851e-05,2]
[397500647,1765197045765,-300.0,5.851e-05,2]
[397500649,1765197045775,-300.0,5.851e-05,2]
[397500651,1765197045784,-300.0,5.851e-05,2]
[397500653,1765197045794,-300.0,5.851e-05,2]
[397500655,1765197045804,-300.0,5.851e-05,2]
[397500657,1765197045813,-300.0,5.851e-05,2]
[397500659,1765197045822,-300.0,5.851e-05,2]
[397500661,1765197045831,-300.0,5.851e-05,2]
[397500663,1765197045840,-300.0,5.851e-05,2]
[397500665,1765197045849,-300.0,5.851e-05,2]
[397500667,1765197045858,-300.0,5.851e-05,2]
[397500669,1765197045867,-300.0,5.851e-05,2]
[397500671,1765197045877,-300.0,5.851e-05,2]
[397500673,1765197045886,-600.0,5.851e-05,2]
[397500675,1765197045896,-500.0,5.851e-05,2]
[397500677,1765197045906,-151.0,5.851e-05,2]
[397500679,1765197045915,-22711.15216785,5.958e-05,2]
[397500681,1765197045925,-90211.04529943,5.96e-05,2]
[397500684,1765197045936,-14296.049,5.96e-05,2]
[397500686,1765197045947,-1155.4,5.96e-05,2]
[397500763,1765197046670,-2545.85178609,5.96e-05,2]
[397500765,1765197046682,-1098.37612677,5.96e-05,2]
[397500771,1765197046731,-1466.83549603,5.96e-05,2]
[397506383,1765197120254,151.0,8.2e-05,73]
[397506389,1765197610694,500.0,0.0002,120]
[397506390,1765197622025,500.0,0.00021,120]
[397506393,1765197902735,1000.0,0.00021,120]
[397506395,1765198067683,46670.99375448,0.000101,3]
[397506396,1765198091639,400.0,0.000211,120]
[397506409,1765198231726,-736.08130421,5.581e-05,2]
[397506692,1765198240402,-4263.91869579,5.581e-05,2]
[397506694,1765198240412,-436.0,5.637e-05,2]
[397506696,1765198240421,-502.0,5.638e-05,2]
[397506698,1765198240429,-452.42460375,5.739e-05,2]
[397506700,1765198240439,-300.0,5.858e-05,2]
[397506702,1765198240448,-546.89333812,5.859e-05,2]
[397506704,1765198240457,-500.0,5.859e-05,2]
[397506706,1765198240466,-500.0,5.859e-05,2]
[397506708,1765198240475,-500.0,5.859e-05,2]
[397506710,1765198240484,-290.94297464,5.859e-05,2]
[397506712,1765198240493,-922.48432678,5.86e-05,2]
[397507248,1765198245802,-53565.48685445,5.86e-05,2]
[397514453,1765198849575,179.28504404,0.000211,99]
[397514456,1765198941061,-725.0,5.7e-05,2]
[397514457,1765199010534,4963.0,5.1e-05,2]
[397514469,1765199431985,-1420.2,5.531e-05,2]
[397514539,1765199438101,-609.41512168,5.531e-05,2]
[397514542,1765199438114,-350.25661644,5.531e-05,2]
[397514544,1765199438125,-447.9548346,5.531e-05,2]
[397515046,1765199443235,-300.0,5.531e-05,2]
[397515048,1765199443247,-892.72318,5.531e-05,2]
[397515054,1765199443289,-979.45024728,5.531e-05,2]
[397515056,1765199443299,-50.95271824,5.587e-05,2]
[397515331,1765199445962,-450.04728176,5.587e-05,2]
[397515333,1765199445971,-447.24709823,5.658e-05,2]
[397515335,1765199445980,-794.0,5.756e-05,2]
[397515337,1765199445989,-300.0,5.757e-05,2]
[397515339,1765199445998,-300.0,5.757e-05,2]
[397515341,1765199446007,-300.0,5.757e-05,2]
[397515343,1765199446017,-300.0,5.758e-05,2]
[397515345,1765199446026,-500.0,5.759e-05,2]
[397515347,1765199446035,-198.99366385,5.759e-05,2]
[397515349,1765199446045,-2481.71195614,5.76e-05,2]
[397528352,1765199942509,10374.72786234,0.0001525,29]
[397528412,1765200632177,-1605.72136513,5.381e-05,2]
[397528413,1765200632239,-2730.9520842,5.381e-05,2]
[397528414,1765200632303,-663.32655067,5.381e-05,2]
[397528415,1765200632313,-442.23320415,5.49e-05,2]
[397528418,1765200632323,-1200.0,5.658e-05,2]
[397528420,1765200632334,-300.0,5.659e-05,2]
[397528422,1765200632345,-51353.03368714,5.66e-05,2]
[397528469,1765200638254,-2521.307953,5.66e-05,2]
[397528478,1765200638369,-5000.0,5.66e-05,2]
[397528623,1765200640522,-440.45,5.66e-05,2]
[397529211,1765200646289,-401.70211563,5.66e-05,2]
[397529214,1765200646300,-10310.16204709,5.66e-05,2]
[397529992,1765200654772,1019.98,0.000211,120]
[397532871,1765201725938,5000.0,5.286e-05,2]
[397532897,1765201738012,2937.88920232,5.286e-05,2]
[397532900,1765201742546,597.56,5.1e-05,2]
[397532907,1765201753822,5000.0,5.286e-05,2]
[397532909,1765201760439,597.42,5.1e-05,2]
[397532938,1765201813546,5000.0,5.1e-05,2]
[397532941,1765201818904,175.29251103,0.0001093,8]
[397532946,1765201826953,170.71,5.1e-05,2]
[397532982,1765201832221,-1000.0,5.182e-05,2]
[397532986,1765201832338,-407.03070456,5.182e-05,2]
[397532988,1765201835945,5000.0,5.1e-05,2]
[397533023,1765201838492,-286.0,5.182e-05,2]
[397533025,1765201838504,-541.79725575,5.182e-05,2]
[397533028,1765201838516,-2765.17203969,5.182e-05,2]
[397533030,1765201838526,-1870.64493314,5.234e-05,2]
[397533033,1765201838548,-524.87469203,5.234e-05,2]
[397533040,1765201838607,-1450.74465607,5.234e-05,2]
[397533042,1765201838619,-683.88842277,5.234e-05,2]
[397533045,1765201838634,-469.84729599,5.234e-05,2]
[397533047,1765201838644,-300.0,5.286e-05,2]
[397533049,1765201838654,-288.38862405,5.415e-05,2]
[397533051,1765201838666,-144.99991601,5.415e-05,2]
[397533053,1765201838677,-229.98300063,5.46e-05,2]
[397533055,1765201838689,-9079.81038059,5.46e-05,2]
[397533059,1765201838719,-69318.90320938,5.46e-05,2]
[397533062,1765201838730,-8186.02382301,5.46e-05,2]
[397533064,1765201838742,-38156.54900693,5.46e-05,2]
[397533240,1765201840621,-511.60544266,5.46e-05,2]
[397533615,1765201844282,-52602.42927606,5.46e-05,2]
[397533617,1765201844297,-38794.184469,5.46e-05,2]
[397533620,1765201844311,-57115.72876127,5.46e-05,2]
[397533622,1765201844323,-2217.27230577,5.46e-05,2]
[397533627,1765201844358,-5009.01328906,5.46e-05,2]
[397533629,1765201844369,-9169.4540032,5.46e-05,2]
[397533631,1765201844380,-8552.6403,5.46e-05,2]
[397533634,1765201844392,-451.59621594,5.46e-05,2]
[397533637,1765201844416,-635.0,5.46e-05,2]
[397533700,1765201845004,-920.41077654,5.46e-05,2]
[397533703,1765201845020,-378.38774052,5.46e-05,2]
[397533705,1765201845032,-464.996769,5.46e-05,2]
[397533707,1765201845043,-302.0,5.46e-05,2]
[397533709,1765201845054,-1403.70927765,5.46e-05,2]
[397533711,1765201845064,-3998.41259666,5.46e-05,2]
[397533714,1765201845075,-3097.4470297,5.46e-05,2]
[397533876,1765201846756,-845.61652906,5.405e-05,2]
[397533878,1765201846767,-465.24704386,5.405e-05,2]
[397533880,1765201846778,-371.73847282,5.405e-05,2]
[397535681,1765201866130,436.03,5.1e-05,2]
[397540038,1765201911091,160.0,5.8e-07,2]
[397540150,1765201912149,160.0,5.8e-07,2]
[397540263,1765201913240,160.0,5.8e-07,2]
[397540346,1765201914281,160.0,5.8e-07,2]
[397540469,1765201915445,160.0,5.8e-07,2]
[397540574,1765201916805,160.0,5.8e-07,2]
[397542631,1765201940252,162.26,5.1e-05,2]
[397543730,1765201952489,248.63,9.347e-05,120]
[397546927,1765201986270,430.55,5.1e-05,2]
[397547066,1765201999274,1564.16334,0.00015,30]
[397547094,1765202061617,157.17,5.1e-05,2]
[397547095,1765202107233,425.08,5.1e-05,2]
[397547097,1765202180223,153.61,5.1e-05,2]
[397547098,1765202229285,419.65,5.1e-05,2]
[397547099,1765202258787,5000.0,5.1e-05,2]
[397547100,1765202266942,5000.0,5.1e-05,2]
[397547101,1765202275876,5000.0,5.1e-05,2]
[397547102,1765202280884,195.0,0.000203,120]
[397547104,1765202291962,5000.0,5.1e-05,2]
[397547105,1765202299843,5000.0,5.1e-05,2]
[397547106,1765202301250,150.86,5.1e-05,2]
[397547107,1765202315231,5000.0,5.1e-05,2]
[397547108,1765202323060,5000.0,5.1e-05,2]
[397547109,1765202338909,5000.0,5.1e-05,2]
[397547111,1765202346847,5000.0,5.1e-05,2]
[397547112,1765202353929,414.28,5.1e-05,2]
[397547113,1765202362085,5000.0,5.1e-05,2]
[397547114,1765202370463,5000.0,5.1e-05,2]
[397547115,1765202388906,5000.0,5.1e-05,2]
[397547116,1765202397964,5000.0,5.1e-05,2]
[397547117,1765202412069,5000.0,5.1e-05,2]
[397547118,1765202420078,5000.0,5.1e-05,2]
[397547119,1765202422462,157.88,5.1e-05,2]
[397547121,1765202435451,5000.0,5.1e-05,2]
[397547122,1765202443529,5000.0,5.1e-05,2]
[397547124,1765202459511,5000.0,5.1e-05,2]
[397547126,1765202467295,3995.14534213,5.1e-05,2]
[397547127,1765202469545,409.15,5.1e-05,2]
[397547128,1765202484044,5000.0,5.1e-05,2]
[397547129,1765202507154,5000.0,5.1e-05,2]
[397547130,1765202529566,5000.0,5.1e-05,2]
[397547131,1765202539169,154.3,5.1e-05,2]
[397547132,1765202552497,643.30029259,5.1e-05,2]
[397547148,1765202590566,404.05,5.1e-05,2]
[397547161,1765202621587,200.0131005,4.459e-05,2]
[397547177,1765202661545,151.37,5.1e-05,2]
[397547184,1765202675002,5000.0,5.1e-05,2]
[397547186,1765202676912,178.7465957,4.581e-05,2]
[397547196,1765202697949,5000.0,5.1e-05,2]
[397547203,1765202710518,399.0,5.1e-05,2]
[397547210,1765202720419,5000.0,5.1e-05,2]
[397547219,1765202743571,5000.0,5.1e-05,2]
[397547231,1765202768603,5000.0,5.1e-05,2]
[397547238,1765202782292,155.94,5.1e-05,2]
[397547245,1765202792030,5000.0,5.1e-05,2]
[397547255,1765202815419,5000.0,5.1e-05,2]
[397547265,1765202833335,394.14,5.1e-05,2]
[397547288,1765202880470,191.65,5.005e-05,2]
[397547289,1765202880756,191.65,5.005e-05,2]
[397547290,1765202881050,191.65,5.005e-05,2]
[397547296,1765202902349,152.74,5.1e-05,2]
[397547297,1765202955089,389.31,5.1e-05,2]
[397547298,1765203021146,156.23,5.1e-05,2]
[397547311,1765203032530,-5000.0,5.17e-05,2]
[397547312,1765203032539,-428.78760862,5.275e-05,2]
[397547313,1765203032548,-300.0,5.358e-05,2]
[397547314,1765203032557,-300.0,5.358e-05,2]
[397547315,1765203032565,-1200.0,5.358e-05,2]
[397547316,1765203032574,-416.21693576,5.359e-05,2]
[397547317,1765203032584,-500.0,5.359e-05,2]
[397547318,1765203032593,-500.0,5.359e-05,2]
[397547319,1765203032602,-500.0,5.359e-05,2]
[397547321,1765203032612,-331.71738044,5.359e-05,2]
[397547322,1765203032621,-500.0,5.359e-05,2]
[397547323,1765203032630,-500.0,5.359e-05,2]
[397547324,1765203032639,-500.0,5.359e-05,2]
[397547325,1765203032648,-500.0,5.359e-05,2]
[397547326,1765203032657,-148566.73088764,5.36e-05,2]
[397547327,1765203032668,-10826.54260695,5.36e-05,2]
[397547363,1765203038594,-3375.35056344,5.36e-05,2]
[397547369,1765203038652,-51236.37084659,5.36e-05,2]
[397547371,1765203038664,-911.94749805,5.36e-05,2]
[397548003,1765203045158,-414.45031978,5.36e-05,2]
[397548011,1765203045222,-3406.06493121,5.36e-05,2]
[397548013,1765203045233,-2913.47731066,5.36e-05,2]
[397548015,1765203045244,-404.63637287,5.36e-05,2]
[397548026,1765203045335,-7883.45929748,5.36e-05,2]
[397548028,1765203045347,-8126.41739416,5.36e-05,2]
[397550522,1765203072515,390.69,5.1e-05,2]
[397555415,1765203144050,153.24,5.1e-05,2]
[397555416,1765203193621,385.94,5.1e-05,2]
[397555417,1765203261364,150.6,5.1e-05,2]
[397555419,1765203314187,381.24,5.1e-05,2]
[397555420,1765203384439,153.35,5.1e-05,2]
[397555421,1765203434491,376.68,5.1e-05,2]
[397555422,1765203499567,150.67,5.1e-05,2]
[397555423,1765203554091,372.16,5.1e-05,2]
[397555424,1765203621694,152.88,5.1e-05,2]
[397555425,1765203637665,5000.0,5.1e-05,2]
[397555426,1765203673793,367.77,5.1e-05,2]
[397555427,1765203700698,173.0534995,9.968e-05,6]
[397555428,1765203701007,173.0534995,0.00010621,7]
[397555429,1765203742284,150.21,5.1e-05,2]
[397555431,1765203794641,363.42,5.1e-05,2]
[397555432,1765203864060,152.01,5.1e-05,2]
[397555433,1765203866905,-170.0,0.00011274,9]
[397555435,1765203920143,359.19,5.1e-05,2]
[397555436,1765203983476,153.55,5.1e-05,2]
[397555438,1765204025154,173.0534995,9.97e-05,7]
[397555439,1765204025530,173.0534995,0.00010716,8]
[397555440,1765204036705,355.07,5.1e-05,2]
[397555441,1765204049630,5000.0,5.1e-05,2]
[397555446,1765204102076,150.78,5.1e-05,2]
[397555447,1765204107938,692.5957809,0.0001,7]
[397555450,1765204121893,200.0,8e-05,7]
[397555451,1765204156170,350.98,5.1e-05,2]
[397555454,1765204220518,152.05,5.1e-05,2]
[397555474,1765204231619,-5000.0,5.172e-05,2]
[397555475,1765204231632,-424.32449757,5.198e-05,2]
[397555476,1765204231642,-300.0,5.255e-05,2]
[397555477,1765204231651,-300.0,5.255e-05,2]
[397555478,1765204231661,-1200.0,5.255e-05,2]
[397555479,1765204231671,-300.0,5.255e-05,2]
[397555480,1765204231680,-300.0,5.255e-05,2]
[397555481,1765204231690,-1200.0,5.256e-05,2]
[397555482,1765204231702,-500.0,5.256e-05,2]
[397555483,1765204231721,-500.0,5.256e-05,2]
[397555484,1765204231731,-500.0,5.256e-05,2]
[397555485,1765204231741,-500.0,5.256e-05,2]
[397555486,1765204231750,-500.0,5.256e-05,2]
[397555487,1765204231759,-500.0,5.256e-05,2]
[397555488,1765204231768,-24.12465189,5.256e-05,2]
[397555489,1765204231780,-475.87534811,5.256e-05,2]
[397555490,1765204231789,-500.0,5.256e-05,2]
[397555491,1765204231799,-75.52022719,5.256e-05,2]
[397555492,1765204231810,-424.47977281,5.256e-05,2]
[397555493,1765204231819,-82.72128279,5.256e-05,2]
[397555494,1765204231831,-417.27871721,5.256e-05,2]
[397555495,1765204231841,-395.88858297,5.256e-05,2]
[397555496,1765204231850,-500.0,5.256e-05,2]
[397555497,1765204231859,-500.0,5.256e-05,2]
[397555498,1765204231869,-500.0,5.256e-05,2]
[397555499,1765204231879,-574.14304532,5.256e-05,2]
[397555500,1765204231887,-500.0,5.256e-05,2]
[397555501,1765204231897,-500.0,5.256e-05,2]
[397555502,1765204231906,-500.0,5.256e-05,2]
[397555503,1765204231916,-500.0,5.256e-05,2]
[397555504,1765204231925,-442.48739811,5.256e-05,2]
[397555505,1765204231935,-500.0,5.256e-05,2]
[397555506,1765204231944,-500.0,5.256e-05,2]
[397555507,1765204231953,-500.0,5.256e-05,2]
[397555508,1765204231963,-500.0,5.256e-05,2]
[397555509,1765204231973,-500.0,5.256e-05,2]
[397555510,1765204231983,-500.0,5.256e-05,2]
[397555511,1765204231992,-500.0,5.256e-05,2]
[397555512,1765204232001,-644.49163798,5.256e-05,2]
[397555513,1765204232010,-500.0,5.256e-05,2]
[397555514,1765204232020,-500.0,5.256e-05,2]
[397555515,1765204232029,-500.0,5.256e-05,2]
[397555516,1765204232038,-500.0,5.256e-05,2]
[397555517,1765204232050,-500.0,5.256e-05,2]
[397555518,1765204232063,-500.0,5.256e-05,2]
[397555519,1765204232072,-500.0,5.256e-05,2]
[397555520,1765204232082,-500.0,5.256e-05,2]
[397555521,1765204232092,-500.0,5.256e-05,2]
[397555522,1765204232102,-500.0,5.256e-05,2]
[397555523,1765204232111,-500.0,5.256e-05,2]
[397555524,1765204232123,-40080.45264672,5.26e-05,2]
[397555525,1765204232149,-476.52,5.26e-05,2]
[397555558,1765204237747,-2725.35099309,5.26e-05,2]
[397555573,1765204237868,-1453.0,5.26e-05,2]
[397555575,1765204237881,-114670.74969861,5.26e-05,2]
[397555793,1765204240249,-400.19930188,5.26e-05,2]
[397555796,1765204240267,-2584.0718956,5.26e-05,2]
[397555799,1765204240287,-900.0,5.26e-05,2]
[397559168,1765204276978,170.48,5.1e-05,2]
[397564421,1765204340711,152.53,5.1e-05,2]
[397564422,1765204365752,3880.83,0.00015,30]
[397564425,1765204396579,170.12,5.1e-05,2]
[397564427,1765204461623,152.98,5.1e-05,2]
[397564428,1765204467060,178.327881,2.147e-05,2]
[397564429,1765204467248,178.327881,3.221e-05,2]
[397564430,1765204468419,178.327881,4.294e-05,2]
[397564452,1765204516834,169.78,5.1e-05,2]
[397564454,1765204583792,153.41,5.1e-05,2]
[397564455,1765204631835,5000.0,5.1e-05,2]
[397564456,1765204635939,169.45,5.1e-05,2]
[397564457,1765204686786,201.24,5.005e-05,2]
[397564458,1765204687066,201.24,5.005e-05,2]
[397564459,1765204704378,153.82,5.1e-05,2]
[397564460,1765204756258,169.14,5.1e-05,2]
[397564461,1765204821277,150.36,5.1e-05,2]
[397564462,1765204848323,5000.0,5.1e-05,2]
[397564463,1765204871128,5000.0,5.1e-05,2]
[397564464,1765204877402,168.76,5.1e-05,2]
[397564465,1765204893382,5000.0,5.1e-05,2]
[397564466,1765204915641,5000.0,5.1e-05,2]
[397564467,1765204938218,5000.0,5.1e-05,2]
[397564468,1765204939614,150.82,5.1e-05,2]
[397564469,1765204960755,5000.0,5.1e-05,2]
[397564470,1765204983152,5000.0,5.1e-05,2]
[397564471,1765204997735,168.4,5.1e-05,2]
[397564472,1765205005777,719.08904202,5.1e-05,2]
[397564475,1765205065158,151.26,5.1e-05,2]
[397564479,1765205119326,168.06,5.1e-05,2]
[397564481,1765205178584,151.68,5.1e-05,2]
[397564482,1765205238990,167.73,5.1e-05,2]
[397564486,1765205301959,152.08,5.1e-05,2]
[397564489,1765205363455,167.42,5.1e-05,2]
[397564491,1765205420541,152.46,5.1e-05,2]
[397564639,1765205438226,-277.0,5.158e-05,2]
[397564641,1765205438236,-300.0,5.158e-05,2]
[397564643,1765205438245,-374.0,5.158e-05,2]
[397564645,1765205438254,-415.83800762,5.158e-05,2]
[397564647,1765205438264,-197.28870018,5.159e-05,2]
[397564649,1765205438274,-406.32314671,5.159e-05,2]
[397564651,1765205438283,-326.94304424,5.159e-05,2]
[397564653,1765205438293,-286.01589392,5.159e-05,2]
[397564655,1765205438302,-500.0,5.159e-05,2]
[397564657,1765205438311,-500.0,5.159e-05,2]
[397564659,1765205438320,-581.52484555,5.159e-05,2]
[397564661,1765205438329,-14107.34917647,5.16e-05,2]
[397564664,1765205438352,-31420.638823,5.16e-05,2]
[397564666,1765205438363,-2398.35421548,5.16e-05,2]
[397564854,1765205440194,-624.75,5.16e-05,2]
[397564862,1765205440254,-1548.42008088,5.16e-05,2]
[397565130,1765205443129,-480.33,5.16e-05,2]
[397568328,1765205477761,167.12,5.1e-05,2]
[397570547,1765205512301,173.0534995,0.00010661,7]
[397570550,1765205539927,152.83,5.1e-05,2]
[397570551,1765205594803,150.0,0.00015,30]
[397570552,1765205596658,166.83,5.1e-05,2]
[397570571,1765205663520,153.19,5.1e-05,2]
[397570583,1765205692213,776873.79198406,5.06e-05,2]
[397570593,1765205714954,166.55,5e-05,2]
[397570640,1765205782628,153.53,5e-05,2]
[397570693,1765205836460,166.29,5e-05,2]
[397570720,1765205899859,150.09,5e-05,2]
[397570726,1765205956693,165.97,5e-05,2]
[397570729,1765205984594,500.0,0.000211,99]
[397570734,1765206003237,523.36,0.000211,99]
[397570738,1765206019358,150.48,5e-05,2]
[397570744,1765206078678,165.66,5e-05,2]
[397570745,1765206140553,150.85,5e-05,2]
[397570748,1765206198649,165.36,5e-05,2]
[397570749,1765206260298,151.21,5e-05,2]
[397570757,1765206316386,165.07,5e-05,2]
[397570766,1765206379966,151.55,5e-05,2]
[397570797,1765206438434,164.8,5e-05,2]
[397570815,1765206484125,281.73,5.005e-05,2]
[397570826,1765206500248,151.87,5e-05,2]
[397570868,1765206556828,164.55,5e-05,2]
[397570887,1765206625570,152.17,5e-05,2]
[397570906,1765206632046,-300.0,5.057e-05,2]
[397570907,1765206632058,-325.36181593,5.058e-05,2]
[397570908,1765206632070,-71357.00402067,5.058e-05,2]
[397570909,1765206632079,-407.52124746,5.058e-05,2]
[397570910,1765206632088,-500.0,5.059e-05,2]
[397570911,1765206632098,-500.0,5.059e-05,2]
[397570912,1765206632107,-500.0,5.059e-05,2]
[397570913,1765206632117,-500.0,5.059e-05,2]
[397570914,1765206632127,-500.0,5.059e-05,2]
[397570915,1765206632136,-444.28066233,5.059e-05,2]
[397570916,1765206632146,-500.0,5.059e-05,2]
[397570917,1765206632156,-500.0,5.059e-05,2]
[397570918,1765206632165,-600.0,5.059e-05,2]
[397570919,1765206632175,-500.0,5.059e-05,2]
[397570920,1765206632184,-405.45425126,5.059e-05,2]
[397570921,1765206632193,-594.54574874,5.059e-05,2]
[397570922,1765206632202,-14177.3467086,5.06e-05,2]
[397571027,1765206638295,-3303.30754041,5.06e-05,2]
[397571029,1765206638307,-16449.08029794,5.06e-05,2]
[397571246,1765206640394,-76071.59305441,5.06e-05,2]
[397571253,1765206640450,-3124.88041458,5.06e-05,2]
[397571255,1765206640460,-250.0,5.159e-05,2]
[397571257,1765206640469,-175.89354138,5.159e-05,2]
[397571259,1765206640479,-500.0,5.183e-05,2]
[397571261,1765206640488,-500.0,5.183e-05,2]
[397571263,1765206640498,-500.0,5.183e-05,2]
[397571265,1765206640507,-500.0,5.183e-05,2]
[397571267,1765206640517,-500.0,5.183e-05,2]
[397571268,1765206640526,-500.0,5.183e-05,2]
[397571270,1765206640536,-500.0,5.183e-05,2]
[397571272,1765206640545,-500.0,5.183e-05,2]
[397571274,1765206640554,-500.0,5.183e-05,2]
[397571276,1765206640563,-500.0,5.183e-05,2]
[397571278,1765206640573,-500.0,5.183e-05,2]
[397571280,1765206640587,-500.0,5.183e-05,2]
[397571282,1765206640597,-500.0,5.183e-05,2]
[397571284,1765206640606,-500.0,5.183e-05,2]
[397571286,1765206640615,-500.0,5.183e-05,2]
[397571288,1765206640625,-500.0,5.183e-05,2]
[397571290,1765206640634,-500.0,5.183e-05,2]
[397571292,1765206640643,-500.0,5.183e-05,2]
[397571295,1765206640653,-500.0,5.183e-05,2]
[397571297,1765206640662,-500.0,5.183e-05,2]
[397571298,1765206640671,-500.0,5.183e-05,2]
[397571300,1765206640680,-500.0,5.183e-05,2]
[397571302,1765206640689,-500.0,5.183e-05,2]
[397571304,1765206640698,-500.0,5.183e-05,2]
[397571306,1765206640709,-533.08127416,5.183e-05,2]
[397571308,1765206640720,-500.0,5.183e-05,2]
[397571310,1765206640729,-500.0,5.183e-05,2]
[397571312,1765206640738,-500.0,5.183e-05,2]
[397571314,1765206640748,-500.0,5.183e-05,2]
[397571316,1765206640758,-500.0,5.183e-05,2]
[397571318,1765206640769,-500.0,5.183e-05,2]
[397571320,1765206640778,-500.0,5.183e-05,2]
[397571322,1765206640788,-500.0,5.183e-05,2]
[397571324,1765206640797,-500.0,5.183e-05,2]
[397571326,1765206640807,-500.0,5.183e-05,2]
[397571328,1765206640816,-500.0,5.183e-05,2]
[397571330,1765206640825,-500.0,5.183e-05,2]
[397571332,1765206640835,-500.0,5.183e-05,2]
[397571334,1765206640844,-500.0,5.183e-05,2]
[397571336,1765206640853,-500.0,5.183e-05,2]
[397571338,1765206640862,-2487.15318209,5.183e-05,2]
[397571340,1765206640872,-242.17745454,5.183e-05,2]
[397571341,1765206640883,-151.0,5.183e-05,2]
[397571343,1765206640892,-500.0,5.183e-05,2]
[397571345,1765206640902,-152.17,5.2e-05,2]
[397571347,1765206640911,-166.72570415,5.26e-05,2]
[397571349,1765206640920,-151.0,5.26e-05,2]
[397571351,1765206640929,-178.53811916,5.26e-05,2]
[397571353,1765206640938,-153.81237967,5.32e-05,2]
[397571355,1765206640948,-500.0,5.32e-05,2]
[397571357,1765206640957,-192.3513152,5.32e-05,2]
[397571359,1765206640966,-192.4043456,5.41e-05,2]
[397571361,1765206640976,-192.4043456,5.41e-05,2]
[397571363,1765206640986,-500.0,5.457e-05,2]
[397571365,1765206640995,-500.0,5.479e-05,2]
[397571368,1765206641010,-500.0,5.479e-05,2]
[397571370,1765206641019,-330.13702509,5.479e-05,2]
[397571372,1765206641028,-152.17,5.5e-05,2]
[397571374,1765206641037,-420.0,5.563e-05,2]
[397571375,1765206641046,-580.0,5.594e-05,2]
[397571377,1765206641055,-152.17,5.7e-05,2]
[397571379,1765206641066,-2579.17784983,5.731e-05,2]
[397571381,1765206641076,-1359.0,5.754e-05,2]
[397571383,1765206641085,-2155.0,5.754e-05,2]
[397571385,1765206641094,-631.0,5.754e-05,2]
[397571387,1765206641104,-207.45339666,5.818e-05,2]
[397571389,1765206641114,-152.17,5.9e-05,2]
[397571391,1765206641123,-237.443,5.93e-05,2]
[397571393,1765206641133,-250.0,5.93e-05,2]
[397571395,1765206641143,-258.17,5.93e-05,2]
[397571397,1765206641152,-266.152,5.93e-05,2]